fUSD/lending_fUSD_20240720
["ID","MTS","AMOUNT","RATE_DAILY","PERIOD"]
[332715177,1721473891385,-4449.71,0.00033424,14]
[332715178,1721473891396,-500.0,0.00033424,14]
[332715179,1721473891406,-698.3,0.00033424,14]
[332715180,1721473891415,-500.0,0.00033424,14]
[332715181,1721473891426,-727.9,0.00033424,14]
[332715182,1721473891626,-500.0,0.00033424,14]
[332715183,1721473891636,-1861.2,0.00033424,14]
[332715184,1721473891646,-454.88954702,0.00033424,14]
[332715185,1721473891655,-1979.67,0.00033424,14]
[332715186,1721473891665,-500.0,0.00033424,14]
[332715187,1721473891675,-2783.18,0.00033424,14]
[332715188,1721473891684,-525.5,0.00033424,14]
[332715189,1721473891693,-500.0,0.00033424,14]
[332715190,1721473891702,-3423.76,0.00033424,14]
[332715191,1721473891711,-3739.53,0.00033424,14]
[332715192,1721473891721,-954.2,0.00033424,14]
[332715193,1721473891730,-500.0,0.00033424,14]
[332715194,1721473891739,-500.0,0.00033424,14]
[332715195,1721473891748,-562.22,0.00033424,14]
[332715196,1721473891757,-4221.65,0.00033424,14]
[332715197,1721473891767,-1454.72,0.00033424,14]
[332715198,1721473891776,-239.08812517,0.00033424,14]
[332715199,1721473891785,-453.86355039,0.00033424,14]
[332715200,1721473891794,-151.0,0.00033424,7]
[332715201,1721473891804,-500.0,0.00033424,14]
[332715202,1721473891814,-1866.63,0.00033424,14]
[332715203,1721473891823,-1847.67,0.00033424,14]
[332715204,1721473891833,-500.0,0.00033424,14]
[332715205,1721473891842,-717.61,0.00033424,14]
[332715206,1721473891851,-500.0,0.00033424,14]
[332715207,1721473891861,-500.0,0.00033424,14]
[332715208,1721473891870,-1568.4,0.00033424,14]
[332715209,1721473891880,-2086.21,0.00033424,14]
[332715210,1721473891889,-2361.41,0.00033424,14]
[332715211,1721473891900,-533.76,0.00033424,14]
[332715212,1721473891910,-531.19,0.00033424,14]
[332715213,1721473891919,-500.0,0.00033424,14]
[332715214,1721473891928,-500.0,0.00033424,14]
[332715215,1721473891937,-7679.89,0.00033424,14]
[332715216,1721473891947,-5599.81,0.00033424,14]
[332715217,1721473891957,-500.0,0.00033424,14]
[332715218,1721473891966,-678.77,0.00033424,14]
[332715219,1721473891976,-2741.18,0.00033424,14]
[332715220,1721473891985,-500.0,0.00033424,14]
[332715221,1721473891995,-150.0,0.00033424,14]
[332715222,1721473892004,-500.0,0.00033424,14]
[332715223,1721473892013,-10000.0,0.00033424,7]
[332715224,1721473892023,-1759.46,0.00033424,14]
[332715225,1721473892032,-3706.51,0.00033424,14]
[332715226,1721473892041,-3111.41,0.00033424,14]
[332715227,1721473892050,-500.0,0.00033424,14]
[332715228,1721473892059,-500.0,0.00033424,14]
[332715229,1721473892069,-500.0,0.00033424,14]
[332715230,1721473892078,-10000.0,0.00033424,7]
[332715231,1721473892088,-500.0,0.00033424,14]
[332715232,1721473892098,-594.85599685,0.00033424,14]
[332715233,1721473892107,-1042.97,0.00033424,14]
[332715234,1721473892116,-2100.36,0.00033424,14]
[332715235,1721473892126,-500.0,0.00033424,14]
[332715236,1721473892136,-500.0,0.00033424,14]
[332715237,1721473892146,-500.0,0.00033424,14]
[332715238,1721473892156,-500.0,0.00033424,14]
[332715239,1721473892165,-521.11,0.00033424,14]
[332715240,1721473892174,-500.0,0.00033424,14]
[332715241,1721473892183,-1119.58,0.00033424,14]
[332715242,1721473892192,-1054.38,0.00033424,14]
[332715243,1721473892201,-151.0,0.00033424,7]
[332715244,1721473892210,-2778.17,0.00033424,14]
[332715245,1721473892219,-500.0,0.00033424,14]
[332715246,1721473892229,-2896.14,0.00033424,14]
[332715247,1721473892238,-1580.83,0.00033424,14]
[332715248,1721473892247,-500.0,0.00033424,14]
[332715249,1721473892256,-500.0,0.00033424,14]
[332715250,1721473892265,-531.09,0.00033424,14]
[332715251,1721473892275,-5371.08,0.00033424,14]
[332715252,1721473892283,-1540.68,0.00033424,14]
[332715253,1721473892293,-500.0,0.00033424,14]
[332715254,1721473892302,-500.0,0.00033424,14]
[332715255,1721473892311,-2005.82,0.00033424,14]
[332715256,1721473892320,-862.76,0.00033424,14]
[332715257,1721473892330,-840.3,0.00033424,14]
[332715258,1721473892339,-562.41,0.00033424,14]
[332715259,1721473892348,-151.984187,0.00033424,7]
[332715260,1721473892358,-500.0,0.00033424,14]
[332715261,1721473892367,-1249.2,0.00033424,14]
[332715262,1721473892376,-634.33,0.00033424,14]
[332715263,1721473892386,-500.0,0.00033424,14]
[332715264,1721473892397,-500.0,0.00033424,14]
[332715265,1721473892406,-500.0,0.00033424,14]
[332715266,1721473892415,-1570.16,0.00033424,14]
[332715267,1721473892425,-500.0,0.00033424,14]
[332715268,1721473892434,-500.0,0.00033424,14]
[332715269,1721473892443,-1581.58,0.00033424,14]
[332715270,1721473892452,-719.82,0.00033424,14]
[332715271,1721473892461,-500.0,0.00033424,14]
[332715272,1721473892470,-500.0,0.00033424,14]
[332715273,1721473892480,-500.0,0.00033424,14]
[332715274,1721473892489,-500.0,0.00033424,14]
[332715275,1721473892499,-1146.91,0.00033424,14]
[332715276,1721473892509,-3329.02,0.00033424,14]
[332715277,1721473892519,-500.0,0.00033424,14]
[332715278,1721473892529,-853.86,0.00033424,14]
[332715279,1721473892538,-526.30130243,0.00033424,14]
[332715280,1721473892548,-2264.07,0.00033424,14]
[332715281,1721473892558,-2219.13,0.00033424,14]
[332715282,1721473892568,-500.0,0.00033424,14]
[332715283,1721473892578,-1902.93,0.00033424,14]
[332715284,1721473892587,-500.0,0.00033424,14]
[332715285,1721473892597,-1120.96,0.00033424,14]
[332715286,1721473892607,-500.0,0.00033424,14]
[332715287,1721473892616,-868.34,0.00033424,14]
[332715288,1721473892626,-705.07,0.00033424,14]
[332715289,1721473892635,-500.0,0.00033424,14]
[332715290,1721473892645,-3016.63,0.00033424,14]
[332715291,1721473892654,-500.0,0.00033424,14]
[332715292,1721473892664,-500.0,0.00033424,14]
[332715293,1721473892674,-500.0,0.00033424,14]
[332715294,1721473892683,-500.0,0.00033424,14]
[332715295,1721473892693,-500.0,0.00033424,14]
[332715296,1721473892703,-667.93,0.00033424,14]
[332715297,1721473892712,-1526.65,0.00033424,14]
[332715298,1721473892722,-1768.29,0.00033424,14]
[332715299,1721473892734,-500.0,0.00033424,14]
[332715300,1721473892744,-500.0,0.00033424,14]
[332715301,1721473892754,-2466.45,0.00033424,14]
[332715302,1721473892764,-500.0,0.00033424,14]
[332715303,1721473892776,-500.0,0.00033424,14]
[332715304,1721473892785,-500.0,0.00033424,14]
[332715305,1721473892795,-500.0,0.00033424,14]
[332715306,1721473892804,-1656.41,0.00033424,14]
[332715307,1721473892813,-500.0,0.00033424,14]
[332715308,1721473892823,-500.0,0.00033424,14]
[332715309,1721473892833,-500.0,0.00033424,14]
[332715310,1721473892842,-1167.22,0.00033424,14]
[332715311,1721473892851,-2366.03,0.00033424,14]
[332715312,1721473892861,-261.038677,0.00033424,7]
[332715313,1721473892871,-500.0,0.00033424,14]
[332715314,1721473892880,-500.0,0.00033424,14]
[332715315,1721473892890,-500.0,0.00033424,14]
[332715316,1721473892901,-578.52,0.00033424,14]
[332715317,1721473892910,-1218.57,0.00033424,14]
[332715318,1721473892919,-500.0,0.00033424,14]
[332715319,1721473892929,-1550.98,0.00033424,14]
[332715320,1721473892938,-1528.37,0.00033424,14]
[332715321,1721473892948,-1548.59,0.00033424,14]
[332715322,1721473892957,-500.0,0.00033424,14]
[332715323,1721473892966,-500.0,0.00033424,14]
[332715324,1721473892977,-3673.09,0.00033424,14]
[332715325,1721473892987,-500.0,0.00033424,14]
[332715326,1721473892997,-2277.43,0.00033424,14]
[332715327,1721473893006,-500.0,0.00033424,14]
[332715328,1721473893016,-652.12,0.00033424,14]
[332715329,1721473893026,-599.55,0.00033424,14]
[332715330,1721473893035,-1666.71,0.00033424,14]
[332715331,1721473893045,-6734.78,0.00033424,14]
[332715332,1721473893054,-500.0,0.00033424,14]
[332715333,1721473893064,-500.0,0.00033424,14]
[332715334,1721473893074,-2116.33,0.00033424,14]
[332715335,1721473893084,-1260.65,0.00033424,14]
[332715336,1721473893094,-500.0,0.00033424,14]
[332715337,1721473893103,-500.0,0.00033424,14]
[332715338,1721473893112,-2036.66,0.00033424,14]
[332715339,1721473893122,-500.0,0.00033424,14]
[332715340,1721473893131,-1126.85,0.00033424,14]
[332715341,1721473893140,-500.0,0.00033424,14]
[332715342,1721473893151,-500.0,0.00033424,14]
[332715343,1721473893161,-500.0,0.00033424,14]
[332715344,1721473893171,-7985.23,0.00033424,14]
[332715345,1721473893183,-500.0,0.00033424,14]
[332715346,1721473893193,-500.0,0.00033424,14]
[332715347,1721473893203,-500.0,0.00033424,14]
[332715348,1721473893212,-500.0,0.00033424,14]
[332715349,1721473893221,-12096.44,0.00033424,14]
[332715350,1721473893231,-4375.25,0.00033424,14]
[332715351,1721473893242,-3186.86,0.00033424,14]
[332715352,1721473893252,-500.0,0.00033424,14]
[332715353,1721473893261,-1788.12,0.00033424,14]
[332715354,1721473893271,-1721.7,0.00033424,14]
[332715355,1721473893280,-863.68,0.00033424,14]
[332715356,1721473893289,-566.34,0.00033424,14]
[332715357,1721473893299,-3156.35,0.00033424,14]
[332715358,1721473893308,-1476.06,0.00033424,14]
[332715359,1721473893317,-500.0,0.00033424,14]
[332715360,1721473893328,-500.0,0.00033424,14]
[332715361,1721473893337,-1444.17,0.00033424,14]
[332715362,1721473893347,-869.37,0.00033424,14]
[332715363,1721473893356,-500.0,0.00033424,14]
[332715364,1721473893365,-500.0,0.00033424,14]
[332715365,1721473893374,-2375.96,0.00033424,14]
[332715366,1721473893384,-1947.99,0.00033424,14]
[332715367,1721473893393,-500.0,0.00033424,14]
[332715368,1721473893403,-500.0,0.00033424,14]
[332715369,1721473893413,-500.0,0.00033424,14]
[332715370,1721473893422,-1524.46,0.00033424,14]
[332715371,1721473893432,-1888.96,0.00033424,14]
[332715372,1721473893442,-500.0,0.00033424,14]
[332715373,1721473893452,-2153.9,0.00033424,14]
[332715374,1721473893461,-2486.1,0.00033424,14]
[332715375,1721473893471,-500.0,0.00033424,14]
[332715376,1721473893480,-1505.49,0.00033424,14]
[332715377,1721473893490,-500.0,0.00033424,14]
[332715378,1721473893500,-1005.44,0.00033424,14]
[332715379,1721473893510,-500.0,0.00033424,14]
[332715380,1721473893519,-500.0,0.00033424,14]
[332715381,1721473893529,-500.0,0.00033424,14]
[332715382,1721473893539,-1923.6,0.00033424,14]
[332715383,1721473893549,-766.54,0.00033424,14]
[332715384,1721473893558,-321.62072289,0.00033424,14]
[332715385,1721473893568,-854.35,0.00033424,14]
[332715386,1721473893578,-500.0,0.00033424,14]
[332715387,1721473893587,-1355.38,0.00033424,14]
[332715388,1721473893597,-1163.9,0.00033424,14]
[332715389,1721473893607,-1583.51,0.00033424,14]
[332715390,1721473893617,-3298.21,0.00033424,14]
[332715391,1721473893627,-519.07,0.00033424,14]
[332715392,1721473893637,-500.0,0.00033424,14]
[332715393,1721473893646,-500.0,0.00033424,14]
[332715394,1721473893656,-1701.96,0.00033424,14]
[332715395,1721473893666,-499.39593817,0.00033424,14]
[332715396,1721473893675,-500.0,0.00033424,14]
[332715397,1721473893684,-2511.74,0.00033424,14]
[332715398,1721473893695,-691.57,0.00033424,14]
[332715399,1721473893704,-500.0,0.00033424,14]
[332715400,1721473893714,-789.5,0.00033424,14]
[332715401,1721473893724,-1632.49,0.00033424,14]
[332715402,1721473893733,-4281.45,0.00033424,14]
[332715403,1721473893743,-500.0,0.00033424,14]
[332715404,1721473893753,-500.0,0.00033424,14]
[332715405,1721473893763,-500.0,0.00033424,14]
[332715406,1721473893772,-500.0,0.00033424,14]
[332715407,1721473893782,-1379.78,0.00033424,14]
[332715408,1721473893792,-1742.94,0.00033424,14]
[332715409,1721473893802,-1369.89,0.00033424,14]
[332715410,1721473893811,-500.0,0.00033424,14]
[332715411,1721473893821,-500.0,0.00033424,14]
[332715412,1721473893831,-1754.36,0.00033424,14]
[332715413,1721473893840,-1621.26,0.00033424,14]
[332715414,1721473893849,-595.81128211,0.00033424,14]
[332715415,1721473893859,-500.0,0.00033424,14]
[332715416,1721473893868,-1484.56,0.00033424,14]
[332715417,1721473893878,-856.79,0.00033424,14]
[332715418,1721473893887,-500.0,0.00033424,14]
[332715419,1721473893898,-500.0,0.00033424,14]
[332715420,1721473893907,-1607.71,0.00033424,14]
[332715421,1721473893917,-2185.27,0.00033424,14]
[332715422,1721473893928,-590.54,0.00033424,14]
[332715423,1721473893938,-719.08,0.00033424,14]
[332715424,1721473893948,-5863.23,0.00033424,14]
[332715425,1721473893958,-500.0,0.00033424,14]
[332715426,1721473893968,-500.0,0.00033424,14]
[332715427,1721473893977,-3835.27,0.00033424,14]
[332715428,1721473893987,-2327.81,0.00033424,14]
[332715429,1721473893996,-3385.14,0.00033424,14]
[332715430,1721473894006,-500.0,0.00033424,14]
[332715431,1721473894015,-1444.8,0.00033424,14]
[332715432,1721473894025,-500.0,0.00033424,14]
[332715433,1721473894035,-1229.52,0.00033424,14]
[332715434,1721473894044,-500.0,0.00033424,2]
[332715435,1721473894054,-2401.57,0.00033424,14]
[332715436,1721473894063,-679.79,0.00033424,14]
[332715437,1721473894072,-1484.07,0.00033424,14]
[332715438,1721473894081,-716.12,0.00033424,14]
[332715439,1721473894091,-500.0,0.00033424,14]
[332715440,1721473894100,-500.0,0.00033424,14]
[332715441,1721473894110,-500.0,0.00033424,14]
[332715442,1721473894119,-500.0,0.00033424,14]
[332715443,1721473894129,-803.16,0.00033424,14]
[332715444,1721473894138,-500.0,0.00033424,14]
[332715445,1721473894148,-1585.29,0.00033424,14]
[332715446,1721473894157,-500.0,0.00033424,14]
[332715447,1721473894168,-1125.98,0.00033424,14]
[332715448,1721473894177,-1460.64,0.00033424,14]
[332715449,1721473894187,-500.0,0.00033424,14]
[332715450,1721473894196,-500.0,0.00033424,14]
[332715451,1721473894205,-1431.69,0.00033424,14]
[332715452,1721473894215,-500.0,0.00033424,14]
[332715453,1721473894224,-500.0,0.00033424,14]
[332715454,1721473894233,-1121.56,0.00033424,14]
[332715455,1721473894244,-1827.29,0.00033424,14]
[332715456,1721473894254,-1089.7,0.00033424,14]
[332715457,1721473894263,-500.0,0.00033424,14]
[332715458,1721473894272,-2971.22,0.00033424,14]
[332715459,1721473894282,-500.0,0.00033424,14]
[332715460,1721473894291,-500.0,0.00033424,14]
[332715461,1721473894301,-816.76,0.00033424,14]
[332715462,1721473894310,-517.26,0.00033424,14]
[332715463,1721473894319,-500.0,0.00033424,14]
[332715464,1721473894328,-646.96,0.00033424,2]
[332715465,1721473894338,-591.61,0.00033424,14]
[332715466,1721473894347,-500.0,0.00033424,14]
[332715467,1721473894356,-793.45,0.00033424,14]
[332715468,1721473894365,-2723.45,0.00033424,14]
[332715469,1721473894374,-1182.38,0.00033424,14]
[332715470,1721473894384,-500.0,0.00033424,14]
[332715471,1721473894393,-531.66,0.00033424,14]
[332715472,1721473894403,-1127.59,0.00033424,14]
[332715473,1721473894412,-500.0,0.00033424,14]
[332715474,1721473894421,-8394.1,0.00033424,14]
[332715475,1721473894431,-500.0,0.00033424,14]
[332715476,1721473894440,-500.0,0.00033424,14]
[332715477,1721473894450,-931.4,0.00033424,14]
[332715478,1721473894459,-3205.98,0.00033424,14]
[332715479,1721473894468,-515.86,0.00033424,14]
[332715480,1721473894477,-500.0,0.00033424,14]
[332715481,1721473894487,-925.89,0.00033424,14]
[332715482,1721473894496,-1969.06,0.00033424,14]
[332715483,1721473894505,-500.0,0.00033424,14]
[332715484,1721473894515,-527.17,0.00033424,14]
[332715485,1721473894524,-952.34,0.00033424,14]
[332715486,1721473894533,-500.0,0.00033424,14]
[332715487,1721473894543,-500.0,0.00033424,14]
[332715488,1721473894552,-977.07,0.00033424,14]
[332715489,1721473894562,-669.76,0.00033424,14]
[332715490,1721473894571,-1520.53,0.00033424,14]
[332715491,1721473894581,-500.0,0.00033424,14]
[332715492,1721473894591,-500.0,0.00033424,14]
[332715493,1721473894600,-805.0,0.00033424,14]
[332715494,1721473894610,-10861.79,0.00033424,14]
[332715495,1721473894621,-606.33998471,0.00033424,14]
[332715496,1721473894630,-500.0,0.00033424,14]
[332715497,1721473894640,-500.0,0.00033424,14]
[332715498,1721473894650,-2329.04,0.00033424,14]
[332715499,1721473894659,-1656.75,0.00033424,14]
[332715500,1721473894669,-911.27,0.00033424,14]
[332715501,1721473894680,-500.0,0.00033424,14]
[332715502,1721473894689,-1547.76,0.00033424,14]
[332715503,1721473894698,-500.0,0.00033424,14]
[332715504,1721473894708,-578.6,0.00033424,14]
[332715505,1721473894717,-150.0,0.0003344,7]
[332715506,1721473894726,-251.83057447,0.00033443,7]
[332715507,1721473894736,-253.0,0.0003345,2]
[332715508,1721473894745,-207.0,0.0003345,2]
[332715509,1721473894755,-211.0,0.0003345,30]
[332715510,1721473894765,-160.41987536,0.00033456,7]
[332715511,1721473894777,-150.0,0.00033472,7]
[332715512,1721473894787,-251.83057447,0.00033478,7]
[332715513,1721473894796,-150.0,0.0003348,7]
[332715514,1721473894805,-150.0,0.00033489,7]
[332715515,1721473894815,-251.83057447,0.00033513,7]
[332715516,1721473894824,-150.0,0.00033536,7]
[332715517,1721473894834,-150.0,0.00033538,7]
[332715518,1721473894843,-150.0,0.00033544,7]
[332715519,1721473894853,-251.83057447,0.00033548,7]
[332715520,1721473894863,-251.83057447,0.00033583,7]
[332715521,1721473894873,-150.0,0.00033586,7]
[332715522,1721473894883,-152.76019455,0.00033598,2]
[332715523,1721473894893,-150.0,0.000336,7]
[332715524,1721473894903,-251.83057447,0.00033617,7]
[332715525,1721473894912,-482.56639442,0.00033633,7]
[332715526,1721473894922,-150.0,0.00033635,7]
[332715527,1721473894931,-251.83057447,0.00033652,7]
[332715528,1721473894941,-150.0,0.00033664,7]
[332715529,1721473894951,-157.0483959,0.0003367,7]
[332715530,1721473895145,-150.0,0.00033684,7]
[332715531,1721473895155,-251.83057447,0.00033687,7]
[332715532,1721473895165,-153.22661118,0.00033694,7]
[332715533,1721473895174,-150.0,0.00033696,7]
[332715534,1721473895183,-150.0,0.00033696,7]
[332715535,1721473895192,-500.0,0.00033698,14]
[332715536,1721473895202,-500.0,0.00033698,14]
[332715537,1721473895211,-500.0,0.00033698,14]
[332715538,1721473895220,-500.0,0.00033698,14]
[332715539,1721473895230,-500.0,0.00033698,14]
[332715540,1721473895239,-500.0,0.00033698,14]
[332715541,1721473895248,-500.0,0.00033698,14]
[332715542,1721473895257,-500.0,0.00033698,14]
[332715543,1721473895268,-244.46078556,0.00033698,14]
[332715544,1721473895277,-500.0,0.00033698,14]
[332715545,1721473895286,-500.0,0.00033698,14]
[332715546,1721473895295,-500.0,0.00033698,14]
[332715547,1721473895304,-637.22,0.00033698,14]
[332715548,1721473895314,-500.0,0.00033698,14]
[332715549,1721473895323,-500.0,0.00033698,14]
[332715550,1721473895332,-500.0,0.00033698,14]
[332715551,1721473895343,-500.0,0.00033698,14]
[332715552,1721473895352,-500.0,0.00033698,14]
[332715553,1721473895361,-665.42,0.00033698,14]
[332715554,1721473895371,-500.0,0.00033698,14]
[332715555,1721473895380,-500.0,0.00033698,14]
[332715556,1721473895389,-500.0,0.00033698,14]
[332715557,1721473895399,-500.0,0.00033698,14]
[332715558,1721473895409,-500.0,0.00033698,14]
[332715559,1721473895419,-500.0,0.00033698,14]
[332715560,1721473895429,-500.0,0.00033698,14]
[332715561,1721473895438,-785.16,0.00033698,14]
[332715562,1721473895447,-500.0,0.00033698,14]
[332715563,1721473895457,-1268.79,0.00033698,14]
[332715564,1721473895466,-626.8263155,0.00033698,14]
[332715565,1721473895475,-500.0,0.00033698,14]
[332715566,1721473895484,-500.0,0.00033698,14]
[332715567,1721473895494,-500.0,0.00033698,14]
[332715568,1721473895503,-500.0,0.00033698,14]
[332715569,1721473895512,-657.46,0.00033698,14]
[332715570,1721473895522,-500.0,0.00033698,14]
[332715571,1721473895531,-500.0,0.00033698,14]
[332715572,1721473895540,-200.0,0.00033698,14]
[332715573,1721473895549,-500.0,0.00033698,14]
[332715574,1721473895558,-500.0,0.00033698,14]
[332715575,1721473895567,-500.0,0.00033698,14]
[332715576,1721473895577,-656.33,0.00033698,14]
[332715577,1721473895587,-500.0,0.00033698,14]
[332715578,1721473895596,-740.41,0.00033698,14]
[332715579,1721473895606,-605.89,0.00033698,14]
[332715580,1721473895616,-500.0,0.00033698,14]
[332715581,1721473895626,-500.0,0.00033698,14]
[332715582,1721473895635,-500.0,0.00033698,14]
[332715583,1721473895645,-869.42,0.00033698,14]
[332715584,1721473895654,-613.28,0.00033698,14]
[332715585,1721473895664,-500.0,0.00033698,14]
[332715586,1721473895673,-500.0,0.00033698,14]
[332715587,1721473895682,-692.13,0.00033698,14]
[332715588,1721473895691,-500.0,0.00033698,14]
[332715589,1721473895701,-500.0,0.00033698,14]
[332715590,1721473895710,-500.0,0.00033698,14]
[332715591,1721473895719,-500.0,0.00033698,14]
[332715592,1721473895728,-506.09,0.00033698,14]
[332715593,1721473895737,-500.0,0.00033698,14]
[332715594,1721473895746,-692.91,0.00033698,14]
[332715595,1721473895755,-660.88,0.00033698,14]
[332715596,1721473895765,-500.0,0.00033698,14]
[332715597,1721473895774,-500.0,0.00033698,14]
[332715598,1721473895784,-376.78821904,0.00033698,14]
[332715599,1721473895795,-500.0,0.00033698,14]
[332715600,1721473895806,-626.34,0.00033698,14]
[332715601,1721473895816,-562.29,0.00033698,14]
[332715602,1721473895825,-500.0,0.00033698,14]
[332715603,1721473895836,-500.0,0.00033698,14]
[332715604,1721473895847,-500.0,0.00033698,14]
[332715605,1721473895857,-501.36818697,0.00033698,14]
[332715606,1721473895868,-500.0,0.00033698,14]
[332715607,1721473895879,-500.0,0.00033698,14]
[332715608,1721473895889,-500.0,0.00033698,14]
[332715609,1721473895899,-500.0,0.00033698,14]
[332715610,1721473895909,-500.0,0.00033698,14]
[332715611,1721473895921,-500.0,0.00033698,14]
[332715612,1721473895932,-649.1,0.00033698,14]
[332715613,1721473895942,-525.64,0.00033698,14]
[332715614,1721473895953,-500.0,0.00033698,14]
[332715615,1721473895962,-500.0,0.00033698,14]
[332715616,1721473895971,-500.0,0.00033698,14]
[332715617,1721473895980,-500.0,0.00033698,14]
[332715618,1721473895989,-549.87,0.00033698,14]
[332715619,1721473895998,-500.0,0.00033698,14]
[332715620,1721473896007,-500.0,0.00033698,14]
[332715621,1721473896016,-500.0,0.00033698,14]
[332715622,1721473896025,-500.0,0.00033698,14]
[332715623,1721473896035,-500.0,0.00033698,14]
[332715624,1721473896044,-500.0,0.00033698,14]
[332715625,1721473896053,-500.0,0.00033698,14]
[332715626,1721473896063,-500.0,0.00033698,14]
[332715627,1721473896072,-763.4,0.00033698,14]
[332715628,1721473896081,-500.0,0.00033698,14]
[332715629,1721473896091,-500.0,0.00033698,14]
[332715630,1721473896100,-500.0,0.00033698,14]
[332715631,1721473896109,-500.0,0.00033698,14]
[332715632,1721473896118,-500.0,0.00033698,14]
[332715633,1721473896127,-500.0,0.00033698,14]
[332715634,1721473896136,-500.0,0.00033698,14]
[332715635,1721473896145,-500.0,0.00033698,14]
[332715636,1721473896154,-500.0,0.00033698,14]
[332715637,1721473896164,-500.0,0.00033698,14]
[332715638,1721473896173,-1119.59,0.00033698,14]
[332715639,1721473896182,-500.0,0.00033698,14]
[332715640,1721473896191,-649.98308207,0.00033698,14]
[332715641,1721473896200,-500.0,0.00033698,14]
[332715642,1721473896210,-500.0,0.00033698,14]
[332715643,1721473896219,-500.0,0.00033698,14]
[332715644,1721473896228,-500.0,0.00033698,14]
[332715645,1721473896238,-500.0,0.00033698,14]
[332715646,1721473896247,-500.0,0.00033698,14]
[332715647,1721473896258,-500.0,0.00033698,14]
[332715648,1721473896269,-500.0,0.00033698,14]
[332715649,1721473896279,-500.0,0.00033698,14]
[332715650,1721473896288,-545.99,0.00033698,14]
[332715651,1721473896298,-500.0,0.00033698,14]
[332715652,1721473896307,-500.0,0.00033698,14]
[332715653,1721473896318,-500.0,0.00033698,14]
[332715654,1721473896328,-649.25,0.00033698,14]
[332715655,1721473896337,-500.0,0.00033698,14]
[332715656,1721473896346,-500.0,0.00033698,14]
[332715657,1721473896355,-500.0,0.00033698,14]
[332715658,1721473896365,-500.0,0.00033698,14]
[332715659,1721473896374,-500.0,0.00033698,14]
[332715660,1721473896382,-500.0,0.00033698,14]
[332715661,1721473896392,-500.0,0.00033698,14]
[332715662,1721473896402,-500.0,0.00033698,14]
[332715663,1721473896411,-500.0,0.00033698,14]
[332715664,1721473896420,-500.0,0.00033698,14]
[332715665,1721473896433,-500.0,0.00033698,14]
[332715666,1721473896442,-500.0,0.00033698,14]
[332715667,1721473896451,-500.0,0.00033698,14]
[332715668,1721473896460,-500.0,0.00033698,14]
[332715669,1721473896470,-500.0,0.00033698,14]
[332715670,1721473896479,-500.0,0.00033698,14]
[332715671,1721473896488,-1601.88,0.00033698,14]
[332715672,1721473896497,-500.0,0.00033698,14]
[332715673,1721473896506,-500.0,0.00033698,14]
[332715674,1721473896515,-500.0,0.00033698,14]
[332715675,1721473896524,-500.0,0.00033698,14]
[332715676,1721473896534,-500.0,0.00033698,14]